fUST/lending_fUST_20251001
["ID","MTS","AMOUNT","RATE_DAILY","PERIOD"]
[388671386,1759313450332,-1000.0,0.00019721,2]
[388671387,1759313450341,-1000.0,0.00019721,2]
[388671389,1759313450352,-1000.0,0.00019721,2]
[388671392,1759313450363,-1000.0,0.00019721,2]
[388671393,1759313450373,-506.06717383,0.00019721,2]
[388671395,1759313450383,-1000.0,0.00019721,2]
[388671398,1759313450395,-1000.0,0.00019721,2]
[388671399,1759313450405,-1000.0,0.00019721,2]
[388671402,1759313450414,-1000.0,0.00019721,2]
[388671403,1759313450424,-1000.0,0.00019721,2]
[388671405,1759313450434,-1000.0,0.00019721,2]
[388671408,1759313450444,-1000.0,0.00019721,2]
[388671410,1759313450453,-1000.0,0.00019721,2]
[388671412,1759313450463,-1000.0,0.00019721,2]
[388671414,1759313450471,-1000.0,0.00019721,2]
[388671416,1759313450481,-557.0,0.00019725,2]
[388671418,1759313450492,-500.0,0.00019726,2]
[388671420,1759313450501,-500.0,0.00019726,2]
[388671422,1759313450510,-520.0,0.00019726,3]
[388671424,1759313450519,-500.0,0.00019726,2]
[388671426,1759313450528,-500.0,0.00019726,2]
[388671428,1759313450538,-500.0,0.00019726,2]
[388671430,1759313450548,-500.0,0.00019726,2]
[388671432,1759313450557,-500.0,0.00019726,2]
[388671434,1759313450566,-1014.38,0.00019726,2]
[388671436,1759313450575,-500.0,0.00019726,2]
[388671438,1759313450584,-500.0,0.00019726,2]
[388671440,1759313450594,-404.47503162,0.00019726,2]
[388671442,1759313450603,-571.58,0.00019726,2]
[388671444,1759313450613,-500.0,0.00019726,2]
[388671446,1759313450623,-500.0,0.00019726,2]
[388671448,1759313450632,-500.0,0.00019726,2]
[388671450,1759313450641,-404.03539874,0.00019726,2]
[388671452,1759313450650,-500.0,0.00019726,2]
[388671453,1759313450659,-365.0625246,0.00019726,2]
[388671455,1759313450668,-841.29,0.00019726,2]
[388671457,1759313450677,-500.0,0.00019726,2]
[388671459,1759313450686,-500.0,0.00019726,2]
[388671461,1759313450695,-500.0,0.00019726,2]
[388671463,1759313450704,-500.0,0.00019726,2]
[388671465,1759313450713,-480.0,0.00019726,2]
[388671467,1759313450722,-500.0,0.00019726,2]
[388671469,1759313450732,-500.0,0.00019726,2]
[388671490,1759313450915,-749.55,0.00019726,2]
[388671492,1759313450928,-1052.97,0.00019726,2]
[388671494,1759313450938,-500.0,0.00019726,2]
[388671496,1759313450947,-976.03,0.00019726,2]
[388671498,1759313450956,-500.0,0.00019726,2]
[388671500,1759313450965,-500.0,0.00019726,2]
[388671502,1759313450974,-561.75,0.00019726,2]
[388671504,1759313450983,-500.0,0.00019726,2]
[388671506,1759313450993,-1101.84,0.00019726,2]
[388671508,1759313451003,-500.0,0.00019726,2]
[388671510,1759313451014,-500.0,0.00019726,2]
[388671512,1759313451023,-1020.46,0.00019726,2]
[388671514,1759313451032,-500.0,0.00019726,2]
[388671516,1759313451041,-500.0,0.00019726,2]
[388671518,1759313451050,-500.0,0.00019726,2]
[388671520,1759313451059,-694.4,0.00019726,2]
[388671522,1759313451068,-745.06,0.00019726,2]
[388671523,1759313451077,-152.077418,0.00019726,2]
[388671525,1759313451087,-500.0,0.00019726,2]
[388671527,1759313451096,-500.0,0.00019726,2]
[388671529,1759313451105,-658.19,0.00019726,2]
[388671531,1759313451114,-151.0,0.00019726,2]
[388671533,1759313451124,-267.87902039,0.00019726,2]
[388671535,1759313451133,-500.0,0.00019726,2]
[388671537,1759313451143,-500.0,0.00019726,2]
[388671539,1759313451152,-500.0,0.00019726,2]
[388671541,1759313451161,-427.25584273,0.00019726,2]
[388671543,1759313451171,-500.0,0.00019726,2]
[388671545,1759313451180,-500.0,0.00019726,2]
[388671547,1759313451190,-1206.09,0.00019726,2]
[388671549,1759313451199,-996.59,0.00019726,2]
[388671551,1759313451208,-1373.03,0.00019726,2]
[388671553,1759313451218,-500.0,0.00019726,2]
[388671555,1759313451227,-500.0,0.00019726,2]
[388671557,1759313451236,-3165.83,0.00019726,2]
[388671559,1759313451245,-1181.97,0.00019726,2]
[388671561,1759313451254,-1295.66,0.00019726,2]
[388671563,1759313451264,-782.85,0.00019726,2]
[388671565,1759313451274,-359.28874371,0.00019726,2]
[388671567,1759313451283,-152.314087,0.00019726,2]
[388671569,1759313451292,-500.0,0.00019726,2]
[388671571,1759313451302,-151.0,0.00019726,2]
[388671573,1759313451316,-500.0,0.00019726,2]
[388671575,1759313451327,-500.0,0.00019726,2]
[388671577,1759313451337,-500.0,0.00019726,2]
[388671579,1759313451346,-500.0,0.00019726,2]
[388671581,1759313451356,-151.0,0.00019726,2]
[388671583,1759313451365,-1029.47,0.00019726,2]
[388671585,1759313451376,-151.0,0.00019726,2]
[388671587,1759313451385,-500.0,0.00019726,2]
[388671589,1759313451395,-155.558288,0.00019726,2]
[388671591,1759313451404,-500.0,0.00019726,2]
[388671593,1759313451413,-500.0,0.00019726,2]
[388671595,1759313451423,-151.0,0.00019726,2]
[388671596,1759313451431,-515.04,0.00019726,2]
[388671598,1759313451441,-500.0,0.00019726,2]
[388671600,1759313451450,-1888.19,0.00019726,2]
[388671602,1759313451460,-903.96,0.00019726,2]
[388671604,1759313451469,-500.0,0.00019726,2]
[388671606,1759313451479,-500.0,0.00019726,2]
[388671608,1759313451488,-500.0,0.00019726,2]
[388671610,1759313451497,-475.86634205,0.00019726,2]
[388671612,1759313451507,-645.87,0.00019726,2]
[388671614,1759313451516,-151.0,0.00019726,2]
[388671616,1759313451525,-500.0,0.00019726,2]
[388671617,1759313451534,-2998.81,0.00019726,2]
[388671619,1759313451543,-500.0,0.00019726,2]
[388671621,1759313451552,-500.0,0.00019726,2]
[388671623,1759313451561,-500.0,0.00019726,2]
[388671625,1759313451570,-1734.48,0.00019726,2]
[388671627,1759313451579,-500.0,0.00019726,2]
[388671629,1759313451588,-153.68823,0.00019726,2]
[388671631,1759313451597,-500.0,0.00019726,2]
[388671633,1759313451606,-1411.59,0.00019726,2]
[388671635,1759313451615,-500.0,0.00019726,2]
[388671637,1759313451624,-500.0,0.00019726,2]
[388671639,1759313451634,-740.79,0.00019726,2]
[388671641,1759313451642,-152.850502,0.00019726,2]
[388671643,1759313451652,-1000.0,0.00019726,2]
[388671645,1759313451661,-500.0,0.00019726,2]
[388671647,1759313451670,-442.06571475,0.00019726,2]
[388671649,1759313451679,-500.0,0.00019726,2]
[388671651,1759313451688,-500.0,0.00019726,2]
[388671653,1759313451697,-500.0,0.00019726,2]
[388671655,1759313451706,-992.76,0.00019726,2]
[388671657,1759313451715,-500.0,0.00019726,2]
[388671659,1759313451724,-500.0,0.00019726,2]
[388671660,1759313451734,-500.0,0.00019726,2]
[388671663,1759313451743,-500.0,0.00019726,2]
[388671664,1759313451753,-500.0,0.00019726,2]
[388671666,1759313451762,-500.0,0.00019726,2]
[388671668,1759313451772,-500.0,0.00019726,2]
[388671670,1759313451781,-445.43133117,0.00019726,2]
[388671672,1759313451790,-500.0,0.00019726,2]
[388671674,1759313451799,-500.0,0.00019726,2]
[388671676,1759313451808,-3974.55,0.00019726,2]
[388671678,1759313451819,-442.09087653,0.00019726,2]
[388671680,1759313451828,-541.57,0.00019726,2]
[388671682,1759313451838,-449.92179903,0.00019726,2]
[388671684,1759313451847,-213.36628015,0.00019726,2]
[388671686,1759313451857,-500.0,0.00019726,2]
[388671688,1759313451867,-500.0,0.00019726,2]
[388671690,1759313451877,-500.0,0.00019726,2]
[388671692,1759313451886,-545.5,0.00019726,2]
[388671694,1759313451895,-449.1727934,0.00019726,2]
[388671696,1759313451905,-500.0,0.00019726,2]
[388671698,1759313451914,-500.0,0.00019726,2]
[388671700,1759313451923,-500.0,0.00019726,2]
[388671702,1759313451932,-151.0,0.00019726,2]
[388671704,1759313451942,-151.0,0.00019726,2]
[388671706,1759313451951,-500.0,0.00019726,2]
[388671708,1759313451960,-500.0,0.00019726,2]
[388671710,1759313451969,-500.0,0.00019726,2]
[388671712,1759313451978,-151.0,0.00019726,2]
[388671714,1759313451987,-500.0,0.00019726,2]
[388671716,1759313451997,-383.76135652,0.00019726,2]
[388671718,1759313452006,-488.16926348,0.00019726,2]
[388671719,1759313452015,-1555.59,0.00019726,2]
[388671721,1759313452024,-640.23146803,0.00019726,2]
[388671723,1759313452033,-500.0,0.00019726,2]
[388671725,1759313452043,-634.21,0.00019726,2]
[388671727,1759313452051,-500.0,0.00019726,2]
[388671729,1759313452061,-500.0,0.00019726,2]
[388671731,1759313452070,-500.0,0.00019726,2]
[388671733,1759313452079,-500.0,0.00019726,2]
[388671735,1759313452088,-3240.37,0.00019726,2]
[388671737,1759313452098,-500.0,0.00019726,2]
[388671739,1759313452106,-1181.3,0.00019726,2]
[388671741,1759313452116,-500.0,0.00019726,2]
[388671743,1759313452125,-1630.64,0.00019726,2]
[388671745,1759313452134,-151.0,0.00019726,2]
[388671747,1759313452143,-442.96379974,0.00019726,2]
[388671749,1759313452152,-500.0,0.00019726,2]
[388671751,1759313452161,-500.0,0.00019726,2]
[388671753,1759313452170,-500.0,0.00019726,2]
[388671755,1759313452179,-500.0,0.00019726,2]
[388671757,1759313452188,-1213.28,0.00019726,2]
[388671759,1759313452197,-500.0,0.00019726,2]
[388671761,1759313452206,-151.0,0.00019726,2]
[388671763,1759313452215,-582.95,0.00019726,2]
[388671765,1759313452223,-447.59379288,0.00019726,2]
[388671767,1759313452232,-151.0,0.00019726,2]
[388671769,1759313452241,-480.0,0.00019726,2]
[388671771,1759313452250,-151.0,0.00019726,2]
[388671773,1759313452258,-500.0,0.00019726,2]
[388671774,1759313452267,-160.500122,0.00019726,2]
[388671776,1759313452276,-500.0,0.00019726,2]
[388671778,1759313452285,-765.97,0.00019726,2]
[388671780,1759313452294,-466.31661819,0.00019726,2]
[388671782,1759313452303,-500.0,0.00019726,2]
[388671784,1759313452315,-837.02,0.00019726,2]
[388671786,1759313452324,-494.44244619,0.00019726,2]
[388671788,1759313452333,-500.0,0.00019726,2]
[388671790,1759313452342,-500.0,0.00019726,2]
[388671792,1759313452351,-500.0,0.00019726,2]
[388671794,1759313452360,-151.0,0.00019726,2]
[388671796,1759313452369,-170.503987,0.00019726,2]
[388671798,1759313452378,-884.28,0.00019726,2]
[388671800,1759313452387,-500.0,0.00019726,2]
[388671802,1759313452397,-151.0,0.00019726,2]
[388671804,1759313452406,-500.0,0.00019726,2]
[388671806,1759313452415,-500.0,0.00019726,2]
[388671808,1759313452424,-518.48,0.00019726,2]
[388671810,1759313452433,-1079.71,0.00019726,2]
[388671811,1759313452442,-446.01671891,0.00019726,2]
[388671813,1759313452451,-500.0,0.00019726,2]
[388671815,1759313452460,-151.0,0.00019726,2]
[388671817,1759313452469,-500.0,0.00019726,2]
[388671819,1759313452478,-500.0,0.00019726,2]
[388671821,1759313452487,-152.729553,0.00019726,2]
[388671823,1759313452497,-154.243573,0.00019726,2]
[388671825,1759313452506,-500.0,0.00019726,2]
[388671827,1759313452515,-151.0,0.00019726,2]
[388671829,1759313452524,-500.0,0.00019726,2]
[388671831,1759313452533,-4574.16,0.00019726,2]
[388671833,1759313452542,-500.0,0.00019726,2]
[388671835,1759313452551,-151.696,0.00019726,2]
[388671836,1759313452560,-151.0,0.00019726,2]
[388671838,1759313452570,-866.19,0.00019726,2]
[388671840,1759313452579,-500.0,0.00019726,2]
[388671842,1759313452589,-2952.94,0.00019726,2]
[388671844,1759313452599,-500.0,0.00019726,2]
[388671846,1759313452610,-2377.38,0.00019726,2]
[388671848,1759313452623,-924.86,0.00019726,2]
[388671850,1759313452635,-663.37,0.00019726,2]
[388671852,1759313452644,-500.0,0.00019726,2]
[388671854,1759313452653,-500.0,0.00019726,2]
[388671856,1759313452662,-4347.91,0.00019726,2]
[388671858,1759313452671,-500.0,0.00019726,2]
[388671860,1759313452680,-1063.86,0.00019726,2]
[388671862,1759313452690,-817.91,0.00019726,2]
[388671864,1759313452699,-13596.8,0.00019726,2]
[388671866,1759313452708,-534.37052141,0.00019726,2]
[388671867,1759313452716,-500.0,0.00019726,2]
[388671869,1759313452725,-2347.65,0.00019726,2]
[388671870,1759313452734,-1170.22,0.00019726,2]
[388671873,1759313452744,-610.39035599,0.00019726,2]
[388671875,1759313452753,-542.85,0.00019726,2]
[388671877,1759313452762,-500.0,0.00019726,2]
[388671878,1759313452771,-500.0,0.00019726,2]
[388671880,1759313452781,-500.0,0.00019726,2]
[388671882,1759313452790,-831.98,0.00019726,2]
[388671884,1759313452799,-500.0,0.00019726,2]
[388671886,1759313452808,-500.0,0.00019726,2]
[388671888,1759313452817,-810.92,0.00019726,2]
[388671890,1759313452827,-1077.3,0.00019726,2]
[388671892,1759313452836,-2091.33,0.00019726,2]
[388671894,1759313452845,-502.63,0.00019726,2]
[388671896,1759313452854,-525.38,0.00019726,2]
[388671898,1759313452863,-500.0,0.00019726,2]
[388671900,1759313452874,-500.0,0.00019726,2]
[388671902,1759313452883,-1988.74,0.00019726,2]
[388671904,1759313452892,-500.0,0.00019726,2]
[388671906,1759313452902,-500.0,0.00019726,2]
[388671908,1759313452912,-633.46,0.00019726,2]
[388671910,1759313452921,-5404.18,0.00019726,2]
[388671912,1759313452930,-4119.01,0.00019726,2]
[388671914,1759313452940,-154.645738,0.00019726,2]
[388671916,1759313452950,-500.0,0.00019726,2]
[388671918,1759313452959,-500.0,0.00019726,2]
[388671920,1759313452968,-2258.24,0.00019726,2]
[388671922,1759313452977,-500.0,0.00019726,2]
[388671924,1759313452986,-960.51,0.00019726,2]
[388671926,1759313452995,-1053.83,0.00019726,2]
[388671928,1759313453004,-1933.08,0.00019726,2]
[388671929,1759313453013,-1539.85,0.00019726,2]
[388671931,1759313453022,-500.0,0.00019726,2]
[388671933,1759313453031,-1111.97,0.00019726,2]
[388671935,1759313453041,-1038.31,0.00019726,2]
[388671937,1759313453050,-2522.32,0.00019726,2]
[388671939,1759313453059,-725.94,0.00019726,2]
[388671941,1759313453068,-500.0,0.00019726,2]
[388671943,1759313453077,-169.31075035,0.00019726,2]
[388671945,1759313453086,-1908.23,0.00019726,2]
[388671947,1759313453095,-846.91,0.00019726,2]
[388671949,1759313453104,-151.0,0.00019726,2]
[388671951,1759313453113,-500.0,0.00019726,2]
[388671953,1759313453122,-151.0,0.00019726,2]
[388671955,1759313453132,-500.0,0.00019726,2]
[388671957,1759313453141,-500.0,0.00019726,2]
[388671959,1759313453150,-151.0,0.00019726,2]
[388671961,1759313453159,-2615.25,0.00019726,2]
[388671963,1759313453172,-1718.53,0.00019726,2]
[388671965,1759313453182,-2181.37,0.00019726,2]
[388671967,1759313453191,-500.0,0.00019726,2]
[388671969,1759313453200,-1789.62,0.00019726,2]
[388671971,1759313453209,-1566.23,0.00019726,2]
[388671972,1759313453218,-500.0,0.00019726,2]
[388671974,1759313453228,-699.54,0.00019726,2]
[388671976,1759313453237,-2212.33,0.00019726,2]
[388671978,1759313453246,-3679.55,0.00019726,2]
[388671980,1759313453256,-500.0,0.00019726,2]
[388671982,1759313453265,-152.25779,0.00019726,2]
[388671984,1759313453275,-287.48299993,0.00019726,2]
[388671986,1759313453284,-740.14,0.00019726,2]
[388671988,1759313453293,-766.66,0.00019726,2]
[388671990,1759313453302,-1590.72,0.00019726,2]
[388671993,1759313453316,-500.0,0.00019726,2]
[388671995,1759313453326,-1278.42,0.00019726,2]
[388671996,1759313453335,-500.0,0.00019726,2]
[388671998,1759313453345,-500.0,0.00019726,2]
[388672001,1759313453355,-3491.149292,0.00019726,2]
[388672002,1759313453364,-151.0,0.00019726,2]
[388672004,1759313453374,-3491.149292,0.00019726,2]
[388672006,1759313453383,-151.0,0.00019726,2]
[388672008,1759313453395,-500.0,0.00019726,2]
[388672010,1759313453404,-3491.149292,0.00019726,2]
[388672012,1759313453413,-500.0,0.00019726,2]
[388672014,1759313453422,-194.064093,0.00019726,2]
[388672016,1759313453432,-3491.149292,0.00019726,2]
[388672018,1759313453441,-1686.96,0.00019726,2]
[388672020,1759313453451,-2397.74,0.00019726,2]
[388672022,1759313453461,-151.0,0.00019726,2]
[388672024,1759313453469,-500.0,0.00019726,2]
[388672026,1759313453478,-151.0,0.00019726,2]
[388672042,1759313453615,-831.34,0.00019726,2]
[388672044,1759313453625,-500.0,0.00019726,2]
[388672045,1759313453634,-500.0,0.00019726,2]
[388672046,1759313453644,-500.0,0.00019726,2]
[388672047,1759313453652,-3430.68,0.00019726,2]
[388672048,1759313453661,-1290.72,0.00019726,2]
[388672049,1759313453670,-500.0,0.00019726,2]
[388672050,1759313453679,-532.51,0.00019726,2]
[388672051,1759313453688,-500.0,0.00019726,2]
[388672052,1759313453697,-500.0,0.00019726,2]
[388672054,1759313453709,-2009.25,0.00019726,2]
[388672056,1759313453719,-5588.63,0.00019726,2]
[388672058,1759313453728,-445.82482971,0.00019726,2]
[388672060,1759313453738,-151.0,0.00019726,2]
[388672062,1759313453747,-151.49104,0.00019726,2]
[388672064,1759313453756,-1091.56,0.00019726,2]
[388672066,1759313453765,-2058.63,0.00019726,2]
[388672068,1759313453774,-500.0,0.00019726,2]
[388672069,1759313453784,-624.66,0.00019726,2]
[388672071,1759313453794,-723.22,0.00019726,2]
[388672074,1759313453803,-1850.45,0.00019726,2]
[388672076,1759313453813,-718.71,0.00019726,2]
[388672077,1759313453822,-500.0,0.00019726,2]
[388672079,1759313453832,-500.0,0.00019726,2]
[388672081,1759313453841,-2970.72,0.00019726,2]
[388672083,1759313453850,-500.0,0.00019726,2]
[388672085,1759313453859,-883.6,0.00019726,2]
[388672088,1759313453869,-500.0,0.00019726,2]
[388672089,1759313453880,-753.51,0.00019726,2]
[388672091,1759313453891,-2608.33,0.00019726,2]
[388672093,1759313453901,-500.0,0.00019726,2]
[388672095,1759313453910,-151.0,0.00019726,2]
[388672096,1759313453920,-445.24350848,0.00019726,2]
[388672097,1759313453930,-151.0,0.00019726,2]
[388672098,1759313453939,-500.0,0.00019726,2]
[388672099,1759313453948,-500.0,0.00019726,2]
[388672100,1759313453958,-973.06,0.00019726,2]
[388672102,1759313453967,-500.0,0.00019726,2]
[388672104,1759313453977,-2268.53,0.00019726,2]
[388672106,1759313453987,-2234.58,0.00019726,2]
[388672109,1759313453997,-500.0,0.00019726,2]
[388672110,1759313454007,-440.0,0.00019726,2]
[388672112,1759313454016,-615.23,0.00019726,2]
[388672114,1759313454025,-2899.74,0.00019726,2]
[388672116,1759313454035,-1420.33,0.00019726,2]
[388672118,1759313454044,-500.0,0.00019726,2]
[388672120,1759313454053,-500.0,0.00019726,2]
[388672122,1759313454062,-4163.6,0.00019726,2]
[388672124,1759313454072,-500.0,0.00019726,2]
[388672126,1759313454081,-151.0,0.00019726,2]
[388672127,1759313454091,-921.19,0.00019726,2]
[388672128,1759313454100,-864.89,0.00019726,2]
[388672129,1759313454110,-1067.34,0.00019726,2]
[388672130,1759313454119,-500.0,0.00019726,2]
[388672131,1759313454129,-2495.81,0.00019726,2]
[388672132,1759313454138,-943.03,0.00019726,2]
[388672133,1759313454147,-632.76,0.00019726,2]
[388672134,1759313454157,-1419.15,0.00019726,2]
[388672135,1759313454166,-370.16662208,0.00019726,2]
[388672136,1759313454175,-1529.22,0.00019726,2]
[388672137,1759313454185,-500.0,0.00019726,2]
[388672138,1759313454195,-6604.53,0.00019726,2]
[388672139,1759313454204,-500.0,0.00019726,2]
[388672140,1759313454214,-151.0,0.00019726,2]
[388672141,1759313454224,-500.0,0.00019726,2]
[388672142,1759313454233,-2119.75,0.00019726,2]
[388672143,1759313454243,-153.056476,0.00019726,2]
[388672144,1759313454252,-500.0,0.00019726,2]
[388672145,1759313454261,-1234.48,0.00019726,2]
[388672146,1759313454270,-500.0,0.00019726,2]
[388672147,1759313454279,-500.0,0.00019726,2]
[388672148,1759313454289,-500.0,0.00019726,2]
[388672149,1759313454298,-2381.04,0.00019726,2]
[388672150,1759313454308,-2114.75,0.00019726,2]
[388672151,1759313454321,-627.39764066,0.00019726,2]
[388672152,1759313454330,-464.54104771,0.00019726,2]
[388672153,1759313454339,-875.67,0.00019726,2]
[388672154,1759313454348,-5800.09,0.00019726,2]
[388672155,1759313454358,-1107.88,0.00019726,2]
[388672156,1759313454367,-1867.26,0.00019726,2]
[388672157,1759313454376,-151.0,0.00019726,2]
[388672158,1759313454385,-151.0,0.00019726,2]
[388672159,1759313454395,-445.43280443,0.00019726,2]
[388672160,1759313454404,-500.0,0.00019726,2]
[388672161,1759313454413,-151.0,0.00019726,2]
[388672162,1759313454423,-2897.33,0.00019726,2]
[388672163,1759313454432,-500.0,0.00019726,2]
[388672164,1759313454441,-215.1977842,0.00019726,2]
[388672165,1759313454450,-151.0,0.00019726,2]
[388672166,1759313454459,-500.0,0.00019726,2]
[388672167,1759313454469,-500.0,0.00019726,2]
[388672168,1759313454477,-168.0,0.00019762,2]
[388672169,1759313454487,-532.04413986,0.00019773,2]
[388672170,1759313454497,-500.0,0.00019773,2]
[388672171,1759313454506,-152.27091551,0.00019773,2]
[388672172,1759313454515,-500.0,0.00019797,2]
[388672173,1759313454525,-151.0,0.00019797,2]
[388672174,1759313454535,-151.0,0.00019797,2]
[388672175,1759313454544,-151.0,0.00019797,2]
[388672176,1759313454553,-220.022776,0.00019797,2]
[388672177,1759313454562,-750.87,0.00019797,2]
[388672178,1759313454571,-2265.48,0.00019797,2]
[388672179,1759313454581,-549.1,0.00019797,2]
[388672180,1759313454591,-500.0,0.00019798,2]
[388672181,1759313454600,-1138.52,0.00019798,2]
[388672182,1759313454609,-500.0,0.00019798,2]
[388672183,1759313454619,-480.0,0.00019798,2]
[388672184,1759313454628,-610.07,0.00019798,2]
[388672185,1759313454638,-151.0,0.00019798,2]
[388672186,1759313454647,-151.0,0.00019798,2]
[388672187,1759313454657,-300.828837,0.00019798,2]
[388672188,1759313454666,-557.0,0.00019821,2]
[388672189,1759313454675,-151.0,0.00019858,2]
[388672190,1759313454685,-151.0,0.00019858,2]
[388672191,1759313454694,-151.0,0.00019858,2]
[388672192,1759313454704,-151.0,0.00019858,2]
[388672193,1759313454713,-151.0,0.00019858,2]
[388672194,1759313454722,-152.09874942,0.00019858,2]
[388672195,1759313454731,-152.8314969,0.00019858,2]
[388672196,1759313454741,-151.02852968,0.00019858,2]
[388672197,1759313454750,-151.94531087,0.00019858,2]
[388672198,1759313454760,-151.7712481,0.00019858,2]
[388672199,1759313454770,-152.30040778,0.00019858,2]
[388672200,1759313454780,-151.0,0.00019858,2]
[388672201,1759313454789,-1000.0,0.00019858,2]
[388672202,1759313454798,-151.0,0.00019858,2]
[388672203,1759313454807,-151.0,0.00019858,2]
[388672204,1759313454817,-500.0,0.00019858,2]
[388672205,1759313454826,-151.0,0.00019858,2]
[388672206,1759313454835,-151.0,0.00019858,2]
[388672207,1759313454844,-557.0,0.00019884,2]
[388672208,1759313454853,-420.089,0.00019917,2]
[388672209,1759313454863,-500.0,0.00019973,2]
[388672210,1759313454872,-500.0,0.00019973,2]
[388672211,1759313454883,-178.61695,0.00019975,2]
[388672212,1759313454893,-405.65486179,0.00019975,2]
[388672213,1759313454903,-435.61281727,0.00019975,2]
[388672214,1759313454913,-55484.63685925,0.0001999,2]
[388672215,1759313454923,-151.0,0.0001999,2]
[388672216,1759313454933,-151.0,0.0001999,2]
[388672217,1759313454943,-151.0,0.0001999,2]
[388672218,1759313454952,-246.789324,0.0001999,2]
[388672219,1759313454962,-178.61695,0.00019999,7]
[388672220,1759313454971,-500.0,0.0002,2]
[388672221,1759313454980,-500.0,0.0002,2]
[388672222,1759313454989,-500.0,0.0002,2]
[388672223,1759313454998,-500.0,0.0002,2]
[388672224,1759313455007,-480.0,0.0002,2]
[388672225,1759313455016,-1014.38,0.0002,2]
[388672226,1759313455025,-405.50679589,0.0002,2]
[388672227,1759313455034,-500.0,0.0002,2]
[388672228,1759313455045,-571.58,0.0002,2]
[388672229,1759313455054,-344.62059544,0.0002,2]
[388672230,1759313455064,-500.0,0.0002,2]
[388672231,1759313455073,-500.0,0.0002,2]
[388672232,1759313455082,-841.29,0.0002,2]
[388672233,1759313455091,-500.0,0.0002,2]
[388672234,1759313455101,-500.0,0.0002,2]
[388672235,1759313455110,-500.0,0.0002,2]
[388672236,1759313455119,-500.0,0.0002,2]
[388672237,1759313455129,-500.0,0.0002,2]
[388672238,1759313455139,-500.0,0.0002,2]
[388672239,1759313455148,-749.55,0.0002,2]
[388672240,1759313455158,-1052.97,0.0002,2]
[388672241,1759313455167,-500.0,0.0002,2]
[388672242,1759313455177,-976.03,0.0002,2]
[388672243,1759313455186,-500.0,0.0002,2]
[388672244,1759313455195,-500.0,0.0002,2]
[388672245,1759313455204,-561.75,0.0002,2]
[388672246,1759313455213,-460.0,0.0002,2]
[388672247,1759313455223,-1101.84,0.0002,2]
[388672248,1759313455232,-500.0,0.0002,2]
[388672249,1759313455241,-500.0,0.0002,2]
[388672250,1759313455251,-1020.46,0.0002,2]
[388672251,1759313455260,-500.0,0.0002,2]
[388672252,1759313455269,-500.0,0.0002,2]
[388672253,1759313455278,-500.0,0.0002,2]
[388672254,1759313455287,-694.4,0.0002,2]
[388672255,1759313455297,-745.06,0.0002,2]
[388672256,1759313455306,-500.0,0.0002,2]
[388672257,1759313455321,-500.0,0.0002,2]
[388672258,1759313455330,-500.0,0.0002,2]